bitfinex-derivatives/quotes_ETHF0:USTF0_20241024
["timestamp","ask_amount","ask_price","bid_price","bid_amount"]
[1729742574695,4.59361862,2545.2,2545.1,0.35395]
[1729742575109,4.23967862,2545.2,2545.1,0.35395]
[1729742577502,4.23967862,2545.2,2545.1,0.78205]
[1729742578392,4.0727,2545.3,2545.2,0.35394]
[1729742578393,3.6425,2545.3,2545.2,0.35394]
[1729742578595,4.0696,2545.3,2545.2,0.35394]
[1729742581196,4.0696,2545.3,2545.1,0.4281]
[1729742581505,4.42353,2545.3,2545.1,0.78204]
[1729742582014,4.0696,2545.3,2545.1,0.4281]
[1729742582208,4.42353,2545.3,2545.1,0.78205]
[1729742582706,4.42353,2545.3,2545.1,0.4281]
[1729742582906,4.42353,2545.3,2545.1,0.78204]
[1729742583106,4.42353,2545.3,2545.1,0.4281]
[1729742583107,4.0696,2545.3,2545.1,0.4281]
[1729742583307,4.42352,2545.3,2545.2,0.35394]
[1729742583502,4.0696,2545.3,2545.2,0.35394]
[1729742586308,4.0696,2545.3,2545.0,2.45625737]
[1729742586514,4.0696,2545.3,2545.2,0.35394]
[1729742589804,3.2078,2545.3,2545.2,0.35394]
[1729742591414,0.4097,2545.5,2545.1,0.4234]
[1729742591613,0.4097,2545.5,2545.4,0.35391]
[1729742592015,3.6324,2545.6,2545.5,0.3539]
[1729742592214,3.6324,2545.6,2545.5,0.7873]
[1729742592418,3.2078,2545.6,2545.5,1.1857]
[1729742592621,3.2078,2545.6,2545.5,1.5916]
[1729742592813,3.2078,2545.6,2545.5,5.5204]
[1729742593312,3.2078,2545.9,2545.8,0.35385]
[1729742593717,7.51697909,2545.9,2545.8,0.35385]
[1729742593920,3.2078,2545.9,2545.8,0.35385]
[1729742597424,0.2811,2546.4,2546.1,0.35381]
[1729742597425,3.2078,2546.2,2546.1,0.35381]
[1729742598313,3.5616,2546.2,2546.1,0.35381]
[1729742598614,3.2078,2546.2,2546.1,0.35381]
[1729742599021,3.2078,2546.2,2545.9,2.45625737]
[1729742599218,3.2078,2546.2,2546.1,0.35381]
[1729742602025,1.18587,2546.4,2546.3,0.35378]
[1729742602419,5.49623465,2546.4,2546.3,0.35378]
[1729742602619,8.35026465,2546.4,2546.3,0.35378]
[1729742606315,7.51816465,2546.4,2546.3,0.35378]
[1729742606526,3.2078,2546.4,2546.3,0.35378]
[1729742608727,3.2078,2546.4,2546.3,4.28098]
[1729742609423,3.2078,2546.7,2546.6,0.35374]
[1729742612221,3.2078,2546.7,2546.6,1.48677184]
[1729742615433,0.77912,2546.8,2546.6,1.48677184]
[1729742615726,0.77912,2546.8,2546.7,1.13303184]
[1729742616132,5.31002793,2546.8,2546.7,1.13303184]
[1729742616529,4.95630793,2546.8,2546.7,1.13303184]
[1729742616730,5.31002793,2546.8,2546.7,1.13303184]
[1729742617323,4.95630793,2546.8,2546.7,1.48676184]
[1729742617532,4.95630793,2546.8,2546.7,1.13303184]
[1729742617739,5.31002793,2546.8,2546.7,1.13303184]
[1729742619237,0.35378,2546.4,2546.2,0.35379]
[1729742619433,4.0655,2546.3,2545.9,0.8323]
[1729742619631,8.9664762,2546.3,2546.2,1.13303184]
[1729742621540,5.7586762,2546.3,2546.2,1.13303184]
[1729742622037,5.4048862,2546.3,2546.2,1.48683184]
[1729742622239,5.7586662,2546.3,2546.2,1.48683184]
[1729742623742,5.7586662,2546.3,2546.2,1.13303184]
[1729742624344,5.7586662,2546.3,2546.2,1.48683184]
[1729742627240,5.7586662,2546.3,2546.2,0.3538]
[1729742627441,5.7586662,2546.3,2546.2,1.48683184]
[1729742628838,5.4048862,2546.3,2546.2,1.48683184]
[1729742631347,4.5471862,2546.3,2546.2,1.48683184]
[1729742635954,0.35376,2546.5,2546.2,1.13303184]
[1729742636255,0.35376,2546.5,2546.4,1.13303184]
[1729742636646,4.86025523,2546.5,2546.4,1.13303184]
[1729742636846,8.06805523,2546.5,2546.4,1.13303184]
[1729742638149,3.56156,2546.5,2546.4,1.13303184]
[1729742640659,0.35377,2546.4,2546.3,0.4144]
[1729742640956,0.35377,2546.4,2546.3,1.54743184]
[1729742642354,4.66923906,2546.4,2546.3,1.54743184]
[1729742643952,4.66923906,2546.4,2546.3,0.4144]
[1729742644155,4.66923906,2546.4,2546.3,1.54743184]
[1729742645259,7.87703906,2546.4,2546.3,1.54743184]
[1729742645959,4.66923906,2546.4,2546.3,1.54743184]
[1729742646260,7.87703906,2546.4,2546.3,1.54743184]
[1729742648057,4.66923906,2546.4,2546.3,1.54743184]
[1729742648259,7.87703906,2546.4,2546.3,1.54743184]
[1729742648560,7.87703906,2546.4,2546.3,1.90121184]
[1729742648963,7.87703906,2546.4,2546.3,1.54743184]
[1729742650360,7.87703906,2546.4,2546.3,1.13303184]
[1729742651662,7.52326906,2546.4,2546.3,1.13303184]
[1729742651860,7.52326906,2546.4,2546.3,1.48681184]
[1729742652062,7.87703906,2546.4,2546.3,1.13303184]
[1729742652267,7.87703906,2546.4,2546.3,1.48681184]
[1729742653266,7.87703906,2546.4,2546.3,1.13303184]
[1729742653771,7.52326906,2546.4,2546.3,1.13303184]
[1729742653969,0.35375,2546.6,2546.3,1.13303184]
[1729742654267,0.35375,2546.6,2546.5,1.48679184]
[1729742654770,4.82590585,2546.6,2546.5,1.48679184]
[1729742655367,4.82590585,2546.6,2546.5,1.13303184]
[1729742655368,4.47215585,2546.6,2546.5,1.13303184]
[1729742655577,4.82589585,2546.6,2546.5,1.13303184]
[1729742656673,4.47215585,2546.6,2546.5,1.13303184]
[1729742656871,4.47215585,2546.6,2546.5,1.48679184]
[1729742658879,3.2078,2546.7,2546.6,0.35374]
[1729742659066,3.2078,2546.7,2546.6,1.48677184]
[1729742660069,0.3537,2546.9,2546.7,0.35373]
[1729742660275,0.3537,2546.9,2546.8,1.13303184]
[1729742660676,4.11278566,2546.9,2546.8,1.48675184]
[1729742662270,4.11278566,2546.9,2546.8,1.13303184]
[1729742662478,4.11278566,2546.9,2546.8,1.48675184]
[1729742662878,3.5615,2547.0,2546.8,1.48675184]
[1729742663080,3.5615,2547.0,2546.9,1.13303184]
[1729742663579,3.62416509,2547.0,2546.9,1.13303184]
[1729742663875,3.62416537,2547.0,2546.9,1.13303184]
[1729742664182,3.2078,2547.0,2546.9,1.13303184]
[1729742664679,3.2078,2547.0,2546.9,1.48673184]
[1729742667779,3.2078,2547.1,2547.0,0.35368]
[1729742667975,3.2078,2547.1,2547.0,1.48671184]
[1729742668177,7.44887566,2547.1,2547.0,1.48671184]
[1729742669784,3.2078,2547.1,2547.0,1.48671184]
[1729742671789,0.35365,2547.3,2547.1,0.35366]
[1729742672098,7.42267682,2547.2,2547.1,0.35366]
[1729742673480,7.42267682,2547.2,2547.1,1.48669184]
[1729742676083,4.21487682,2547.2,2547.1,1.48669184]
[1729742676385,7.42267682,2547.2,2547.1,1.48669184]
[1729742687395,4.21487682,2547.2,2547.1,1.48669184]
[1729742687796,7.42267682,2547.2,2547.1,1.48669184]
[1729742695601,3.2078,2547.2,2547.1,1.48669184]
[1729742699396,0.35365,2547.3,2547.1,1.48669184]
[1729742699706,3.2078,2547.2,2547.1,0.35366]
[1729742700905,3.2078,2547.2,2547.1,1.48669184]
[1729742702818,3.2078,2547.2,2547.1,5.41229184]
[1729742707811,1.13303184,2548.0,2547.1,6.54532368]
[1729742708014,0.88382,2548.2,2547.4,1.48666184]
[1729742708015,3.2078,2547.5,2547.4,1.48666184]
[1729742709321,3.2078,2547.5,2547.4,2.61969368]
[1729742713234,3.2078,2547.5,2547.4,6.54529368]
[1729742713523,3.2078,2547.5,2547.4,6.66816768]
[1729742716023,3.2078,2547.5,2547.4,6.66816514]
[1729742716932,3.2078,2547.5,2547.4,7.09066514]
[1729742720230,3.2078,2547.5,2547.4,6.96779368]
[1729742720432,4.043,2547.9,2547.8,0.35358]
[1729742720635,4.043,2547.9,2547.8,1.48661184]
[1729742721640,4.043,2547.9,2547.8,1.90261184]
[1729742727636,0.8352,2547.9,2547.8,1.90261184]
[1729742731545,0.8352,2547.9,2547.8,5.82741184]
[1729742733132,0.8352,2547.9,2547.8,1.90261184]
[1729742733338,0.8352,2547.9,2547.8,5.82741184]
[1729742735046,3.2078,2548.1,2547.8,5.47383184]
[1729742735252,3.2078,2548.1,2548.0,1.48658184]
[1729742741452,0.8293,2548.2,2548.0,1.13303184]
[1729742741656,4.0371,2548.2,2548.1,1.48656184]
[1729742743845,4.0371,2548.2,2548.1,1.91566184]
[1729742746747,4.0371,2548.2,2548.1,3.04869368]
[1729742747050,4.0371,2548.2,2548.1,1.91566184]
[1729742748051,4.0371,2548.2,2548.1,3.04869368]
[1729742748452,0.8293,2548.2,2548.1,3.04869368]
[1729742748656,0.4137,2548.2,2548.1,3.04869368]
[1729742748857,3.6215,2548.2,2548.1,1.91566184]
[1729742749053,3.6215,2548.2,2548.1,6.97349368]
[1729742749259,3.6215,2548.2,2548.1,7.37109368]
[1729742749761,2.01661184,2548.9,2548.1,7.01756368]
[1729742749762,3.2078,2548.9,2548.1,7.01756368]
[1729742749961,0.4001,2548.8,2548.7,0.35345]
[1729742750154,0.4001,2548.8,2548.7,3.56125]
[1729742752757,0.4001,2548.8,2548.7,4.69428184]
[1729742756659,0.4001,2548.8,2548.7,1.48648184]
[1729742763267,45.14083184,2549.4,2549.0,0.3534]
[1729742763268,0.35339,2549.2,2549.0,0.3534]
[1729742763577,0.06258776,2549.1,2548.8,1.051]
[1729742763769,0.3534,2549.1,2548.9,0.35342]
[1729742763969,0.3971,2549.0,2548.9,0.35342]
[1729742765180,0.3971,2549.0,2548.9,1.48645184]
[1729742768686,0.3971,2549.0,2548.9,1.91265184]
[1729742779291,0.35339,2549.2,2549.0,0.3534]
[1729742779586,0.75229,2549.2,2549.1,1.13303184]
[1729742779788,4.67549,2549.2,2549.1,1.13303184]
[1729742784221,0.75229,2549.2,2549.1,1.13303184]
[1729742790031,4.3221,2549.2,2548.6,3.6223]
[1729742790231,4.3221,2549.2,2548.7,0.3991]
[1729742790232,0.35345,2548.8,2548.7,0.3991]
[1729742791022,1.61424,2548.9,2548.7,0.75255]
[1729742791411,4.10222638,2548.8,2548.7,0.75254]
[1729742791713,4.10222638,2548.8,2548.7,1.88557184]
[1729742791905,4.45566638,2548.8,2548.7,1.88557184]
[1729742792714,4.10222638,2548.8,2548.7,1.88557184]
[1729742794626,4.45566638,2548.8,2548.7,1.53213184]
[1729742795698,4.10222638,2548.8,2548.7,1.53213184]
[1729742795906,0.35344,2548.9,2548.7,1.88558184]
[1729742796204,0.35344,2548.9,2548.8,1.13303184]
[1729742796404,0.41600186,2548.9,2548.8,1.13303184]
[1729742797713,0.41599843,2548.9,2548.8,1.13303184]
[1729742799910,0.35344,2548.9,2548.8,1.13303184]
[1729742804510,0.75984,2548.9,2548.8,1.13303184]
[1729742813626,5.24412789,2548.9,2548.8,1.13303184]
[1729742815725,4.83772789,2548.9,2548.8,1.13303184]
[1729742819922,4.83772789,2548.9,2548.8,1.48647184]
[1729742821232,4.83772789,2548.9,2548.8,1.13303184]
[1729742822220,4.83772789,2548.9,2548.8,1.54723184]
[1729742824929,4.83772789,2548.9,2548.8,1.90067184]
[1729742825131,4.48428789,2548.9,2548.8,1.90067184]
[1729742825332,4.83770789,2548.9,2548.8,1.90067184]
[1729742826723,4.48428789,2548.9,2548.8,1.90067184]
[1729742827140,0.35337,2549.3,2548.8,4.75503184]
[1729742827335,0.35337,2549.3,2549.2,1.13303184]
[1729742827529,0.41593058,2549.3,2549.2,1.13303184]
[1729742827836,8.52642669,2549.3,2549.2,1.13303184]
[1729742828032,8.52642669,2549.3,2549.2,1.48641184]
[1729742828437,8.5264269,2549.3,2549.2,1.48641184]
[1729742828637,8.52642639,2549.3,2549.2,1.13303184]
[1729742829041,8.46386611,2549.3,2549.2,1.13303184]
[1729742829233,4.60402664,2549.3,2549.2,1.13303184]
[1729742829630,4.60402664,2549.3,2549.2,1.55813184]
[1729742830038,4.54146611,2549.3,2549.2,1.55813184]
[1729742830642,4.54146611,2549.3,2549.2,1.98433184]
[1729742833429,4.18809611,2549.3,2549.2,2.33771184]
[1729742833637,0.35336,2549.4,2549.2,1.98433184]
[1729742833944,4.10920731,2549.4,2549.3,1.91039184]
[1729742834237,4.36675,2549.5,2549.3,1.91039184]
[1729742834441,4.36675,2549.5,2549.4,1.13303184]
[1729742834841,1.15895,2549.5,2549.4,1.13303184]
[1729742836337,0.4083,2549.5,2549.4,1.48638184]
[1729742836540,0.78282,2549.7,2549.4,1.13303184]
[1729742836844,0.78282,2549.7,2549.3,0.424]
[1729742836845,5.01925019,2549.7,2549.6,1.13303184]
[1729742837043,4.58975019,2549.7,2549.6,1.48636184]
[1729742837253,4.58975019,2549.7,2549.6,1.54643184]
[1729742837446,4.58975019,2549.7,2549.6,1.89976184]
[1729742838548,4.58975019,2549.7,2549.6,1.54643184]
[1729742839053,4.58975019,2549.7,2549.6,1.89976184]
[1729742839352,4.94306019,2549.7,2549.6,1.54643184]
[1729742839747,4.58975019,2549.7,2549.6,1.54643184]
[1729742839952,4.94306019,2549.7,2549.6,1.54643184]
[1729742840144,4.58975019,2549.7,2549.6,1.54643184]
[1729742840339,4.58975019,2549.7,2549.6,1.89976184]
[1729742840650,4.58975019,2549.7,2549.6,1.54643184]
[1729742841243,4.58975019,2549.7,2549.6,1.89976184]
[1729742841647,4.19065019,2549.7,2549.6,1.89976184]
[1729742842043,3.2078,2549.8,2549.6,1.89976184]
[1729742842239,3.2078,2549.8,2549.7,1.56413184]
[1729742842855,3.5611,2549.8,2549.7,1.56413184]
[1729742843247,0.3533,2549.8,2549.7,1.56413184]
[1729742843444,3.5611,2549.8,2549.7,1.56413184]
[1729742846949,3.2078,2549.8,2549.7,1.91744184]
[1729742849645,0.35329,2549.9,2549.7,1.91743184]
[1729742849846,0.35329,2549.9,2549.8,1.13303184]
[1729742850042,0.35329,2549.9,2549.8,1.55023184]
[1729742851047,44.4402,2550.2,2549.8,5.47183184]
[1729742851254,44.36104,2550.2,2550.1,1.13303184]
[1729742851553,44.42356079,2550.2,2550.1,1.13303184]
[1729742852053,44.36104,2550.2,2550.1,1.13303184]
[1729742852255,44.48608483,2550.2,2550.1,1.13303184]
[1729742852455,44.48608483,2550.2,2550.1,1.55283184]
[1729742852656,3.68608483,2550.2,2550.1,1.55283184]
[1729742852855,3.68608993,2550.2,2550.1,1.55283184]
[1729742853756,3.68609133,2550.2,2550.1,1.55283184]
[1729742856259,3.68609945,2550.2,2550.1,1.55283184]
[1729742859456,3.62356242,2550.2,2550.1,1.55283184]
[1729742862064,3.56104,2550.2,2550.1,1.55283184]
[1729742864861,0.35324,2550.2,2550.1,1.55283184]
[1729742865061,3.56104,2550.2,2550.1,1.55283184]
[1729742865966,3.2078,2550.2,2550.1,1.90609184]
[1729742866262,3.56104,2550.2,2550.1,1.55283184]
[1729742867766,0.35324,2550.2,2550.1,1.55283184]
[1729742868665,0.35324,2550.2,2550.1,1.13303184]
[1729742869965,1.13303184,2550.2,2549.7,3.2078]
[1729742870171,2.32850184,2550.1,2549.9,0.35328]
[1729742870359,2.32850184,2550.1,2550.0,1.13303184]
[1729742870360,1.19547,2550.1,2550.0,1.13303184]
[1729742870565,1.19547,2550.1,2550.0,1.56983184]
[1729742873470,0.77037,2550.1,2550.0,1.92310184]
[1729742873671,0.35327,2550.1,2550.0,1.92310184]
[1729742875164,5.17773184,2550.3,2550.0,1.92310184]
[1729742875476,4.5659741,2550.2,2550.0,0.79007]
[1729742876469,4.5659741,2550.2,2550.1,1.13303184]
[1729742876876,4.5659741,2550.2,2550.1,1.55353184]
[1729742877762,0.35325,2550.2,2550.1,1.55353184]
[1729742878165,4.0447,2550.3,2550.1,1.55353184]
[1729742878365,4.39794,2550.3,2550.2,1.13303184]
[1729742879370,1.19014,2550.3,2550.2,1.13303184]
[1729742879677,4.39794,2550.3,2550.2,1.13303184]
[1729742881278,1.19014,2550.3,2550.2,1.13303184]
[1729742881576,4.39794,2550.3,2550.2,1.13303184]
[1729742885579,4.0447,2550.3,2550.2,1.13303184]
[1729742885774,4.0447,2550.3,2550.2,1.48627184]
[1729742885775,3.2078,2550.3,2550.2,1.48627184]
[1729742886083,3.2078,2550.3,2550.2,1.92457184]
[1729742889692,3.27030678,2550.3,2550.2,1.92457184]
[1729742890084,0.06250678,2550.3,2550.2,1.92457184]
[1729742890284,0.06250678,2550.4,2550.2,1.92457184]
[1729742890476,0.41572678,2550.4,2550.3,1.48626184]
[1729742890782,0.41572626,2550.4,2550.3,1.92256184]
[1729742891374,0.06250626,2550.4,2550.3,1.92256184]
[1729742892979,0.06249725,2550.4,2550.3,1.92256184]
[1729742894686,1.64831,2550.5,2550.3,1.92256184]
[1729742894888,1.64831,2550.5,2550.4,1.13303184]
[1729742895186,1.71080273,2550.5,2550.4,1.13303184]
[1729742897878,1.64831,2550.5,2550.4,1.13303184]
[1729742898881,2.78134184,2550.5,2550.4,1.13303184]
[1729742899381,0.35324,2550.2,2550.0,0.35327]
[1729742899585,0.8547,2550.1,2550.0,2.52830184]
[1729742899890,3.2078,2550.3,2550.0,6.09663184]
[1729742900081,0.35323,2550.3,2550.2,1.13303184]
[1729742900481,5.19553184,2550.6,2550.2,1.54873184]
[1729742900681,0.3532,2550.5,2550.4,1.13303184]
[1729742904886,0.4156876,2550.5,2550.4,1.13303184]
[1729742906686,0.3532,2550.5,2550.4,1.13303184]
[1729742906883,0.41568483,2550.5,2550.4,1.13303184]
[1729742910787,0.41568992,2550.5,2550.4,1.13303184]
[1729742911393,0.3532,2550.5,2550.4,1.13303184]
[1729742911595,0.41568977,2550.5,2550.4,1.13303184]
[1729742911895,0.41568888,2550.5,2550.4,1.13303184]
[1729742912203,0.06248888,2550.5,2550.4,1.13303184]
[1729742912391,0.41568888,2550.5,2550.4,1.13303184]
[1729742912698,0.06248888,2550.5,2550.4,1.13303184]
[1729742912899,4.8287,2550.6,2550.4,1.13303184]
[1729742913192,4.8287,2550.6,2550.5,1.13303184]
[1729742913390,3.6339,2550.6,2550.5,1.13303184]
[1729742913585,3.56099,2550.6,2550.5,1.56963184]
[1729742914190,4.69402184,2550.6,2550.5,0.4366]
[1729742914488,3.56099,2550.6,2550.5,1.56963184]
[1729742914893,0.3532,2550.5,2550.4,0.4349]
[1729742915095,0.3532,2550.5,2550.4,1.56793184]
[1729742920195,0.41561701,2550.5,2550.4,1.56793184]
[1729742922299,0.06241701,2550.5,2550.4,1.56793184]
[1729742922594,3.561,2550.6,2550.4,1.56793184]
[1729742922793,0.06244509,2550.5,2550.4,0.4349]
[1729742922996,0.06244957,2550.5,2550.4,1.56793184]
[1729742923189,3.561,2550.6,2550.4,1.56793184]
[1729742923397,3.561,2550.6,2550.5,1.13303184]
[1729742923602,3.62345495,2550.6,2550.5,1.13303184]
[1729742924888,0.41565495,2550.6,2550.5,1.13303184]
[1729742926702,0.41568469,2550.6,2550.5,1.13303184]
[1729742927102,0.41567469,2550.6,2550.5,1.13303184]
[1729742927601,0.06248469,2550.6,2550.5,1.54143184]
[1729742928099,0.35319,2550.6,2550.5,1.54143184]
[1729742928406,3.97708,2550.7,2550.5,1.54143184]
[1729742928795,3.97708,2550.7,2550.6,0.3963]
[1729742931296,0.76928,2550.7,2550.6,0.3963]
[1729742940808,0.83177239,2550.7,2550.6,0.3963]
[1729742941009,0.83177239,2550.7,2550.5,1.13303184]
[1729742941010,0.35319,2550.6,2550.5,1.13303184]
[1729742941198,0.35319,2550.6,2550.4,1.56793184]
[1729742941713,0.35319,2550.6,2550.5,1.13303184]
[1729742941902,0.35319,2550.6,2550.5,1.54403184]
[1729742946213,0.35319,2550.6,2550.5,0.411]
[1729742947013,0.35319,2550.6,2550.5,1.54403184]
[1729742947311,0.3532,2550.5,2550.4,0.4349]
[1729742947511,0.3532,2550.5,2550.4,1.56793184]
[1729742948907,4.0343,2550.7,2550.4,1.56793184]
[1729742949113,0.35319,2550.6,2550.5,0.4311]
[1729742949313,4.74184686,2550.6,2550.5,0.4311]
[1729742950307,4.80438148,2550.6,2550.5,0.4311]
[1729742953416,4.80438207,2550.6,2550.5,0.4311]
[1729742956116,4.45119207,2550.6,2550.5,0.4311]
[1729742957421,4.4511933,2550.6,2550.5,0.4311]
[1729742957624,4.8043833,2550.6,2550.5,0.4311]
[1729742958125,4.80438666,2550.6,2550.5,0.4311]
[1729742958327,4.74184686,2550.6,2550.5,0.4311]
[1729742960621,4.38865686,2550.6,2550.5,0.4311]
[1729742961727,4.74184686,2550.6,2550.5,0.4311]
[1729742969834,4.80438205,2550.6,2550.5,0.4311]
[1729742970334,4.74184686,2550.6,2550.5,0.4311]
[1729742971526,7.94964686,2550.6,2550.5,0.4311]
[1729742973138,4.74184686,2550.6,2550.5,0.4311]
[1729742973338,7.94964686,2550.6,2550.5,0.4311]
[1729742975838,4.74184686,2550.6,2550.5,0.4311]
[1729742976548,7.94964686,2550.6,2550.5,0.4311]
[1729742979432,4.74184686,2550.6,2550.5,0.4311]
[1729742979644,7.94964686,2550.6,2550.5,0.4311]
[1729742980439,8.01219477,2550.6,2550.5,0.4311]
[1729742981140,4.80439477,2550.6,2550.5,0.4311]
[1729742981538,8.01219477,2550.6,2550.5,0.4311]
[1729742981735,8.01219571,2550.6,2550.5,0.4311]
[1729742982237,8.0121954,2550.6,2550.5,0.4311]
[1729742985550,4.8043954,2550.6,2550.5,0.4311]
[1729742985851,4.8043959,2550.6,2550.5,0.4311]
[1729742988252,0.06254904,2550.6,2550.5,1.56413184]
[1729742988453,4.38748,2550.7,2550.5,1.56413184]
[1729742988646,5.52051184,2550.7,2550.5,1.56413184]
[1729742988848,5.52051184,2550.7,2550.6,0.4299]
[1729742991048,2.31271184,2550.7,2550.6,0.4299]
[1729742997856,2.37525687,2550.7,2550.6,0.4299]
[1729743000054,5.58305687,2550.7,2550.6,0.4299]
[1729743000965,5.52051184,2550.7,2550.6,0.4299]
[1729743001158,5.52051184,2550.7,2550.4,0.4349]
[1729743001159,0.3532,2550.5,2550.4,0.4349]
[1729743001465,0.3532,2550.5,2550.4,0.8615]
[1729743002266,1.48622184,2550.6,2550.4,1.99453184]
[1729743002661,1.13303184,2550.6,2550.4,2.34774184]
[1729743005857,1.13303184,2550.6,2550.4,1.99453184]
[1729743006072,4.38748,2550.7,2550.5,1.48623184]
[1729743006270,4.0343,2550.7,2550.6,1.13303184]
[1729743006564,4.38747,2550.7,2550.6,1.13303184]
[1729743006771,4.38747,2550.7,2550.5,1.13303184]
[1729743007074,3.2078,2550.7,2550.5,1.48623184]
[1729743007266,3.2078,2550.7,2550.6,0.4223]
[1729743007968,3.56097,2550.7,2550.6,0.4223]
[1729743009070,3.2078,2550.7,2550.6,0.4223]
[1729743010172,3.2078,2550.7,2550.6,1.90852184]
[1729743010568,3.27035108,2550.7,2550.6,1.90852184]
[1729743011474,3.27035108,2550.7,2550.6,1.55533184]
[1729743011668,3.27035108,2550.7,2550.6,0.4223]
[1729743012269,3.2078,2550.7,2550.6,0.4223]
[1729743012475,3.2703506,2550.7,2550.6,0.4223]
[1729743013173,3.6235206,2550.7,2550.6,0.4223]
[1729743013769,3.2703506,2550.7,2550.6,0.4223]
[1729743014479,3.27035133,2550.7,2550.6,0.4223]
[1729743015777,3.27035133,2550.7,2550.6,1.90852184]
[1729743017177,3.27035063,2550.7,2550.6,1.90852184]
[1729743017879,3.27035063,2550.7,2550.6,1.55533184]
[1729743018776,3.2078,2550.7,2550.6,1.55533184]
[1729743020775,3.2078,2550.7,2550.6,1.90852184]
[1729743021087,3.2078,2550.7,2550.6,5.82932184]
[1729743022984,3.56097,2550.7,2550.6,4.69629]
[1729743023281,3.56097,2550.7,2550.6,2.94152184]
[1729743024081,3.56097,2550.7,2550.6,1.55533184]
[1729743024487,3.56097,2550.7,2550.6,1.90852184]
[1729743025893,3.2078,2550.7,2550.6,1.55533184]
[1729743026089,3.56097,2550.7,2550.6,1.90852184]
[1729743026295,3.2078,2550.7,2550.6,1.90852184]
[1729743027091,3.2078,2550.7,2550.6,2.94152184]
[1729743028582,0.35317,2550.8,2550.6,2.58833184]
[1729743028783,0.35317,2550.8,2550.7,1.92460184]
[1729743028993,0.35317,2550.8,2550.7,2.32990184]
[1729743030796,0.35317,2550.8,2550.7,1.97673184]
[1729743030997,0.35317,2550.8,2550.7,2.32990184]
[1729743031890,0.35317,2550.8,2550.7,1.97673184]
[1729743032990,0.35317,2550.8,2550.7,2.32990184]
[1729743035597,4.0412,2550.9,2550.7,1.97673184]
[1729743035804,3.56095,2550.9,2550.8,1.48619184]
[1729743035999,3.62350561,2550.9,2550.8,1.48619184]
[1729743036706,3.56095,2550.9,2550.8,1.48619184]
[1729743036907,3.62350604,2550.9,2550.8,1.48619184]
[1729743037905,8.32338788,2550.9,2550.4,0.35321]
[1729743038208,0.35319,2550.6,2550.5,1.13303184]
[1729743040100,0.35319,2550.6,2550.5,1.48623184]
[1729743040297,0.35319,2550.6,2550.5,1.13303184]
[1729743041395,0.41573866,2550.6,2550.5,1.13303184]
[1729743042406,0.41573866,2550.6,2550.5,1.48623184]
[1729743042802,0.41573866,2550.6,2550.5,1.13303184]
[1729743043210,0.41573866,2550.6,2550.5,1.48623184]
[1729743043802,0.41573866,2550.6,2550.5,1.88783184]
[1729743044304,0.06254866,2550.6,2550.5,1.88783184]
[1729743044701,0.06254741,2550.6,2550.5,1.88783184]
[1729743045093,0.41573741,2550.6,2550.5,1.88783184]
[1729743046009,0.06254741,2550.6,2550.5,1.88783184]
[1729743046201,0.41573741,2550.6,2550.5,1.88783184]
[1729743048202,0.35319,2550.6,2550.5,1.88783184]
[1729743050011,0.427,2550.7,2550.5,1.88783184]
[1729743050209,0.78018,2550.7,2550.6,1.13303184]
[1729743054116,0.35318,2550.7,2550.6,1.13303184]
[1729743054415,0.35318,2550.7,2550.6,1.56173184]
[1729743055208,4.40677,2550.8,2550.6,1.56173184]
[1729743055514,4.40677,2550.8,2550.7,1.13303184]
[1729743055709,4.40677,2550.8,2550.7,1.53743184]
[1729743056712,1.19897,2550.8,2550.7,1.53743184]
[1729743059020,2.33200184,2550.8,2550.7,0.4044]
[1729743059521,1.19897,2550.8,2550.7,1.53743184]
[1729743060017,2.33200184,2550.8,2550.7,1.53743184]
[1729743060419,1.19897,2550.8,2550.7,1.53743184]
[1729743064215,4.40677,2550.8,2550.7,1.53743184]
[1729743065113,3.2078,2550.8,2550.7,1.53743184]
[1729743065313,3.2078,2550.8,2550.7,1.89060184]
[1729743066924,3.56095,2550.9,2550.7,1.89060184]
[1729743067124,3.56095,2550.9,2550.8,1.13303184]
[1729743067326,3.62350606,2550.9,2550.8,1.13303184]
[1729743071329,3.56095,2550.9,2550.8,1.13303184]
[1729743071525,3.6235143,2550.9,2550.8,1.13303184]
[1729743072527,3.6235143,2550.9,2550.8,1.56863184]
[1729743073423,3.2703643,2550.9,2550.8,1.56863184]
[1729743073627,3.6235143,2550.9,2550.8,1.56863184]
[1729743073826,3.2703643,2550.9,2550.8,1.56863184]
[1729743074921,3.6235143,2550.9,2550.8,1.56863184]
[1729743075322,3.56095,2550.9,2550.8,1.56863184]
[1729743075531,3.62351742,2550.9,2550.8,1.56863184]
[1729743076123,3.62351839,2550.9,2550.8,1.56863184]
[1729743077224,0.35316,2550.8,2550.7,1.53743184]
[1729743077425,0.41572839,2550.8,2550.7,1.13303184]
[1729743077627,5.16402473,2550.8,2550.7,1.13303184]
[1729743078226,5.10145634,2550.8,2550.7,1.13303184]
[1729743078428,5.16403717,2550.8,2550.7,1.13303184]
[1729743078631,5.10145634,2550.8,2550.7,1.13303184]
[1729743079429,5.1640359,2550.8,2550.7,1.13303184]
[1729743081126,5.10145634,2550.8,2550.7,1.13303184]
[1729743081730,5.16403735,2550.8,2550.7,1.13303184]
[1729743082531,8.37183735,2550.8,2550.7,1.13303184]
[1729743083232,8.30925634,2550.8,2550.7,1.13303184]
[1729743083426,8.01867786,2550.8,2550.4,0.8367]
[1729743083631,0.3532,2550.5,2550.4,1.55403184]
[1729743090634,0.3532,2550.5,2550.4,1.90725184]
[1729743091740,0.3532,2550.5,2550.4,1.55403184]
[1729743092535,0.3532,2550.5,2550.4,1.90725184]
[1729743093539,1.95373184,2550.7,2550.4,1.55403184]
[1729743093738,2.30690184,2550.7,2550.6,1.13303184]
[1729743093944,2.3694796,2550.7,2550.6,1.13303184]
[1729743094144,6.86955243,2550.7,2550.6,1.13303184]
[1729743095048,5.67394283,2550.7,2550.6,1.13303184]
[1729743095548,5.32077283,2550.7,2550.6,1.13303184]
[1729743095750,5.67394283,2550.7,2550.6,1.13303184]
[1729743096245,5.32077283,2550.7,2550.6,1.48622184]
[1729743096442,5.67394283,2550.7,2550.6,1.13303184]
[1729743096745,5.67394283,2550.7,2550.6,1.48622184]
[1729743097144,5.32077283,2550.7,2550.6,1.48622184]
[1729743097647,5.67394283,2550.7,2550.6,1.13303184]
[1729743099347,5.32077283,2550.7,2550.6,1.13303184]
[1729743099546,5.67394283,2550.7,2550.6,1.13303184]
[1729743100544,5.67394283,2550.7,2550.6,1.55823184]